fUSD/lending_fUSD_20251120
["ID","MTS","AMOUNT","RATE_DAILY","PERIOD"]
[394478054,1763617840477,-500.0,0.00017621,2]
[394478056,1763617840487,-1000.0,0.00017621,2]
[394478058,1763617840496,-500.0,0.00017621,2]
[394478060,1763617840505,-453.63718322,0.00017623,2]
[394478062,1763617840514,-300.0,0.00017637,2]
[394478064,1763617840524,-300.0,0.00017637,2]
[394478066,1763617840534,-300.0,0.00017637,2]
[394478068,1763617840543,-300.0,0.00017637,2]
[394478070,1763617840553,-300.0,0.00017637,2]
[394478073,1763617840562,-250.0,0.00017637,2]
[394478075,1763617840572,-150.0,0.0001764,2]
[394478077,1763617840582,-703.77091929,0.0001764,2]
[394478079,1763617840591,-10182.16434936,0.0001764,2]
[394478080,1763617840600,-167.56685966,0.00017643,2]
[394478082,1763617840609,-2192.31652278,0.00017644,2]
[394478084,1763617840619,-262.0,0.00017645,2]
[394478086,1763617840628,-417.54862495,0.00017655,2]
[394478088,1763617840637,-11707.06587621,0.00017686,2]
[394478090,1763617840647,-184.92,0.0001769,2]
[394478092,1763617840656,-150.0,0.000177,2]
[394478094,1763617840665,-150.0,0.000177,2]
[394478096,1763617840675,-300.0,0.000177,6]
[394478098,1763617840684,-1680.0,0.00017706,2]
[394478100,1763617840694,-2192.31652278,0.00017729,2]
[394478102,1763617840703,-150.0,0.00017743,2]
[394478104,1763617840713,-1702.76,0.00017753,2]
[394478106,1763617840722,-453.63718322,0.00017761,2]
[394478108,1763617840732,-703.77091929,0.0001777,2]
[394478110,1763617840741,-262.0,0.00017771,2]
[394478112,1763617840750,-167.56685966,0.00017772,2]
[394478114,1763617840759,-150.0,0.00017775,2]
[394478116,1763617840768,-151.0,0.0001779,2]
[394478120,1763617840779,-11707.06587621,0.00017793,2]
[394478122,1763617840788,-489.02727717,0.00017798,2]
[394478123,1763617840798,-150.0,0.000178,2]
[394478126,1763617840807,-1703.0,0.000178,2]
[394478127,1763617840816,-300.0,0.000178,6]
[394478130,1763617840826,-2192.31652278,0.00017815,2]
[394478132,1763617840836,-1719.17703,0.0001782,2]
[394478134,1763617840845,-162.95436659,0.00017826,2]
[394478136,1763617840855,-262.0,0.00017831,2]
[394478138,1763617840863,-262.0,0.00017834,2]
[394478140,1763617840873,-262.0,0.00017847,2]
[394478142,1763617840882,-150.0,0.0001785,2]
[394478143,1763617840891,-200.0,0.00017856,2]
[394478145,1763617840901,-1820.68505313,0.00017863,2]
[394478147,1763617840910,-10309.04130668,0.00017873,2]
[394478149,1763617840921,-262.0,0.00017873,2]
[394478151,1763617840930,-25000.0,0.00017874,3]
[394478153,1763617840939,-513.12223873,0.00017875,2]
[394478155,1763617840949,-25000.0,0.00017882,3]
[394478157,1763617840958,-25000.0,0.00017891,3]
[394478159,1763617840969,-262.0,0.00017897,2]
[394478161,1763617840979,-634.92,0.00017899,2]
[394478163,1763617840988,-500.0,0.00017899,2]
[394478165,1763617840997,-179.96414648,0.000179,3]
[394478167,1763617841007,-2192.31652278,0.000179,2]
[394478169,1763617841016,-167.56685966,0.000179,2]
[394478171,1763617841026,-25000.0,0.000179,3]
[394478172,1763617841035,-1000.0,0.000179,2]
[394478173,1763617841043,-11707.06587621,0.000179,2]
[394478174,1763617841053,-453.63718322,0.000179,2]
[394478175,1763617841062,-300.0,0.000179,6]
[394478176,1763617841075,-500.37989577,0.000179,2]
[394478177,1763617841084,-27793.82354216,0.000179,2]
[394478178,1763617841094,-515.35190765,0.000179,2]
[394478179,1763617841103,-703.77091929,0.000179,2]
[394478180,1763617841114,-295.80418224,0.000179,2]
[394478181,1763617841123,-4585.0,0.000179,2]
[394478182,1763617841143,-972.01807675,0.00017968,2]
[394478183,1763617841154,-1500.0,0.00017968,2]
[394478184,1763617841164,-1500.0,0.00017968,2]
[394478185,1763617841173,-1500.0,0.00017968,2]
[394478186,1763617841183,-1500.0,0.00017968,2]
[394478187,1763617841193,-126350.0,0.00017973,2]
[394478188,1763617841202,-5954.0,0.00017973,2]
[394478189,1763617841214,-647.0,0.00017973,2]
[394478190,1763617841223,-500.0,0.00017973,2]
[394478191,1763617841233,-500.0,0.00017973,2]
[394478192,1763617841243,-161.60192736,0.00017973,2]
[394478193,1763617841252,-500.0,0.00017973,2]
[394478194,1763617841262,-500.0,0.00017973,2]
[394478195,1763617841271,-500.0,0.00017973,2]
[394478196,1763617841282,-500.0,0.00017973,2]
[394478197,1763617841291,-316.17285237,0.00017973,2]
[394478198,1763617841300,-500.0,0.00017973,2]
[394478199,1763617841311,-160.73608923,0.00017973,2]
[394478200,1763617841320,-501.20084487,0.00017973,2]
[394478201,1763617841330,-297.20176291,0.00017973,2]
[394478202,1763617841340,-500.0,0.00017973,2]
[394478203,1763617841349,-500.62908268,0.00017973,2]
[394478204,1763617841359,-572.18369893,0.00017973,2]
[394478205,1763617841369,-500.90554177,0.00017973,2]
[394478206,1763617841379,-500.0,0.00017973,2]
[394478207,1763617841389,-500.0,0.00017973,2]
[394478208,1763617841400,-1820.68505313,0.0001799,2]
[394478209,1763617841410,-1820.68505313,0.0001799,2]
[394478210,1763617841419,-1000.0,0.00017997,2]
[394478211,1763617841430,-1000.0,0.00017997,2]
[394478212,1763617841439,-1000.0,0.00017997,2]
[394478213,1763617841450,-529.632,0.00017997,2]
[394478214,1763617841459,-151.0,0.00017997,2]
[394478215,1763617841471,-351.02217685,0.00017999,2]
[394478216,1763617841481,-300.0,0.00017999,2]
[394478217,1763617841490,-634.92,0.00017999,2]
[394478218,1763617841503,-634.92,0.00017999,2]
[394478219,1763617841513,-634.92,0.00017999,2]
[394478220,1763617841522,-634.92,0.00017999,2]
[394478221,1763617841532,-634.92,0.00017999,2]
[394478222,1763617841541,-634.92,0.00017999,2]
[394478223,1763617841550,-634.92,0.00017999,2]
[394478224,1763617841559,-634.92,0.00017999,2]
[394478225,1763617841569,-634.92,0.00017999,2]
[394478226,1763617841578,-634.92,0.00017999,2]
[394478227,1763617841589,-634.92,0.00017999,2]
[394478228,1763617841598,-634.92,0.00017999,2]
[394478229,1763617841608,-634.92,0.00017999,2]
[394478230,1763617841617,-634.92,0.00017999,2]
[394478231,1763617841627,-634.92,0.00017999,2]
[394478232,1763617841636,-634.92,0.00017999,2]
[394478233,1763617841645,-634.92,0.00017999,2]
[394478234,1763617841655,-635.14299022,0.00017999,2]
[394478235,1763617841664,-300.0,0.00017999,2]
[394478236,1763617841674,-500.0,0.00017999,2]
[394478237,1763617841684,-630.01716056,0.00017999,2]
[394478238,1763617841693,-157.46326484,0.00018,2]
[394478239,1763617841706,-162.19021309,0.00018,2]
[394478240,1763617841718,-162.44314539,0.00018,2]
[394478241,1763617841729,-163.88615832,0.00018,2]
[394478242,1763617841739,-161.16722895,0.00018,2]
[394478243,1763617841748,-158.27867007,0.00018,2]
[394478244,1763617841759,-151.54395466,0.00018,2]
[394478245,1763617841768,-156.98001533,0.00018,2]
[394478246,1763617841778,-162.92521406,0.00018,2]
[394478247,1763617841788,-155.92779982,0.00018,2]
[394478248,1763617841798,-872812.19831189,0.00018,2]
[394478249,1763617841808,-542697.85319173,0.00018,2]
[394478250,1763617841827,-2789.11661312,0.00018,2]
[394478251,1763617841838,-984.52589463,0.00018,2]
[394478252,1763617841854,-5923.28685643,0.00018,2]
[394478253,1763617841866,-281.00000004,0.00018,2]
[394478254,1763617841917,290.986897,0.000395,120]
[394478255,1763617841930,-19600.0,0.00018,2]
[394478256,1763617841942,-288.75296258,0.00018,2]
[394478257,1763617841991,158.416788,0.00039,120]
[394478258,1763617842039,151.0,0.00039,120]
[394478259,1763617842111,151.0,0.000395,120]
[394478260,1763617842157,158.416796,0.000395,120]
[394478261,1763617842239,290.986897,0.00039,120]
[394478262,1763617842289,232.66734682,0.00042029,120]
[394478263,1763617842331,290.986897,0.000395,120]
[394478264,1763617842381,218.96106563,0.00042029,120]
[394478265,1763617842430,151.0,0.00039,120]
[394478266,1763617842443,-489.828261,0.00016731,2]
[394478267,1763617842562,-18.69073784,0.00016731,2]
[394478268,1763617842573,-388.42939272,0.00017615,2]
[394478269,1763617842585,-452.20582707,0.00017615,2]
[394478270,1763617842793,151.0,0.000395,120]
[394478271,1763617842806,-1083.4,0.00017615,2]
[394478272,1763617842928,-4569.96478021,0.00017615,2]
[394478273,1763617842938,-9115.96484335,0.00018,2]
[394478274,1763617842949,-95050.62427929,0.00018,2]
[394478275,1763617842960,-555.4,0.00018,2]
[394478276,1763617843036,290.986897,0.00039,120]
[394478277,1763617843131,290.986901,0.000395,120]
[394478278,1763617843189,151.0,0.00039,120]
[394478279,1763617843232,151.0,0.00039,120]
[394478280,1763617843314,151.0,0.000395,120]
[394478281,1763617843365,336.04536079,0.00042029,120]
[394478282,1763617843413,151.0,0.000395,120]
[394478283,1763617843801,158.84502626,0.00042029,120]
[394478285,1763617844028,-169.6,0.00017178,2]
[394478286,1763617844039,-10182.16434936,0.0001777,2]
[394478287,1763617844049,-118139.1321211,0.00018,2]
[394478288,1763617844061,-1232.00549497,0.00018,2]
[394478289,1763617844081,-12712.5909525,0.00018,2]
[394478290,1763617844104,-3001.83614507,0.00018,2]
[394478291,1763617844116,-6855.90067227,0.00018,2]
[394478292,1763617844127,-521.86461277,0.00018,2]
[394478293,1763617844139,-315.315,0.00018,2]
[394478294,1763617844150,-3439.16975584,0.00018,2]
[394478295,1763617844165,-1614.77246,0.00018,2]
[394478296,1763617844655,151.0,0.00039,120]
[394478297,1763617844906,-12754.36686087,0.00018,2]
[394478298,1763617844917,-9074.1995102,0.00018,2]
[394478299,1763617844959,151.0,0.000395,120]
[394478300,1763617844985,-198140.85427555,0.00018,2]
[394478301,1763617845537,162.787008,0.00039,120]
[394478307,1763617846476,-8313.79910523,0.000179,2]
[394478308,1763617846491,-1868.36524413,0.000179,2]
[394478309,1763617846500,-8617.98915599,0.00018,2]
[394478310,1763617846697,-12499.25363365,0.00018,2]
[394478311,1763617846709,-20576.89426753,0.00018,2]
[394478312,1763617846820,-999.56322216,0.00018,2]
[394478313,1763617846831,-364.00002,0.00018,2]
[394478314,1763617846842,-774.50000158,0.00018,2]
[394478315,1763617846854,-362.5,0.00018,2]
[394478316,1763617846865,-290.856,0.00018,2]
[394478317,1763617846875,-424.56000003,0.00018,2]
[394478320,1763617852414,151.0,0.00039,120]
[394478321,1763617852722,151.0,0.000395,120]
[394478322,1763617853093,154.28169529,0.00042029,120]
[394478323,1763617854084,151.0,0.00039,120]
[394478324,1763617854390,151.0,0.000395,120]
[394478325,1763617855051,151.0,0.00039,90]
[394478326,1763617855385,151.0,0.000395,90]
[394478327,1763617855527,757.0,0.00054795,31]
[394478328,1763617855808,254.24406,0.00039,120]
[394478329,1763617856897,151.0,0.00039,90]
[394478330,1763617857196,151.0,0.000395,90]
[394478331,1763617858529,255.389336,0.00039,90]
[394478332,1763617859415,907.0,0.00050615,120]
[394478333,1763617859761,312.85945826,0.00042029,120]
[394478334,1763617859861,907.0,0.00053615,120]
[394478335,1763617860991,219.05207905,0.00042029,120]
[394478336,1763617862332,200.0,0.00042029,30]
[394478338,1763617863327,172.68263462,0.00042029,120]
[394478339,1763617864352,159.5130708,0.00042029,120]
[394478340,1763617871109,400.0,0.00042029,120]
[394478341,1763617878647,180.05284615,0.00042029,120]
[394478342,1763617879500,250.08564848,0.00042029,120]
[394478343,1763617880692,219.44430711,0.00042029,120]
[394478344,1763617883746,245.61826095,0.00042029,120]
[394478348,1763617885033,352.33655655,0.00042029,120]
[394478349,1763617885941,-151.0,0.00038,31]
[394478350,1763617885982,-202.019517,0.00038,31]
[394478351,1763617886022,-151.0,0.00038,31]
[394478352,1763617886064,-202.019517,0.00038,31]
[394478353,1763617886106,-202.019517,0.00038,31]
[394478354,1763617886146,-202.019517,0.00038,31]
[394478355,1763617886184,-151.0,0.00038,31]
[394478356,1763617886222,-151.0,0.00038,31]
[394478357,1763617886260,-151.0,0.00038,31]
[394478358,1763617886300,-151.0,0.00038,31]
[394478359,1763617886338,-151.0,0.00038,31]
[394478360,1763617886373,-151.0,0.00038,31]
[394478361,1763617886410,-214.576605,0.00039,120]
[394478362,1763617886447,-159.071309,0.00039,120]
[394478363,1763617886482,-214.576605,0.00039,120]
[394478364,1763617886517,-214.576605,0.00039,120]
[394478365,1763617886555,-214.576605,0.00039,120]
[394478366,1763617886592,-214.576605,0.000395,120]
[394478367,1763617886629,-214.576605,0.000395,120]
[394478368,1763617886668,-214.576605,0.000395,120]
[394478369,1763617886708,-151.0,0.000395,120]
[394478370,1763617886746,-202.019517,0.000395,120]
[394478371,1763617886787,-214.576611,0.000395,120]
[394478372,1763617886826,-269.722112,0.000395,120]
[394478373,1763617886867,-202.019517,0.000395,120]
[394478374,1763617886905,-202.019517,0.000395,120]
[394478375,1763617886948,-202.019517,0.000395,120]
[394478376,1763617886989,-151.0,0.000395,120]
[394478377,1763617887031,-151.0,0.000395,120]
[394478378,1763617887075,-151.0,0.000395,120]
[394478379,1763617887123,-151.0,0.000395,120]
[394478380,1763617887169,-151.0,0.000395,120]
[394478381,1763617887208,-161.902104,0.000395,120]
[394478382,1763617887250,-151.0,0.00041,120]
[394478383,1763617887289,-202.019517,0.00041,120]
[394478384,1763617887325,-202.019517,0.00041,120]
[394478385,1763617887361,-202.019517,0.00041,120]
[394478386,1763617887396,-202.01952,0.00041,120]
[394478387,1763617887430,-173.056737,0.00041,120]
[394478388,1763617887464,-203.650847,0.00041,120]
[394478389,1763617887503,-188.47141,0.00041,120]
[394478390,1763617887541,-151.0,0.00041,120]
[394478391,1763617887618,-1328.0,0.000517,120]
[394478392,1763617887656,-250.0,0.00054795,30]
[394478393,1763617887691,-250.0,0.00054795,30]
[394478394,1763617887726,-250.0,0.00054795,30]
[394478395,1763617887761,-250.0,0.00054795,30]
[394478396,1763617887795,-250.0,0.00054795,30]
[394478397,1763617887829,-250.0,0.00054795,30]
[394478398,1763617887863,-250.0,0.00054795,30]
[394478399,1763617887897,-250.0,0.00054795,30]
[394478400,1763617887931,-250.0,0.00054795,30]
[394478401,1763617887965,-250.0,0.00054795,30]
[394478402,1763617887999,-395.698345,0.00054795,30]
[394478403,1763617888032,-568.61789738,0.00054795,30]
[394478404,1763617888067,-1200.0,0.00054795,30]
[394478405,1763617888104,-1290.0,0.00054795,120]
[394478406,1763617888137,-1290.0,0.00054795,120]
[394478407,1763617888168,-1290.0,0.00054795,120]
[394478408,1763617888201,-1290.0,0.00054795,120]
[394478409,1763617888235,-1290.0,0.00054795,120]
[394478410,1763617888269,-1290.0,0.00054795,120]
[394478411,1763617888306,-1290.0,0.00054795,120]
[394478412,1763617888339,-1290.0,0.00054795,120]
[394478413,1763617888372,-1290.0,0.00054795,120]
[394478414,1763617888406,-1290.0,0.00054795,120]
[394478415,1763617888437,-1290.0,0.00054795,120]
[394478416,1763617888471,-1290.0,0.00054795,120]
[394478417,1763617888504,-1290.0,0.00054795,120]
[394478418,1763617888538,-1290.0,0.00054795,120]
[394478419,1763617888572,-1290.0,0.00054795,120]
[394478420,1763617888604,-1290.0,0.00054795,120]
[394478421,1763617888638,-1290.0,0.00054795,120]
[394478422,1763617888672,-1290.0,0.00054795,120]
[394478423,1763617888706,-1290.0,0.00054795,120]
[394478424,1763617888740,-1290.0,0.00054795,120]
[394478425,1763617888776,-1290.0,0.00054795,120]
[394478426,1763617888950,-1290.0,0.00054795,120]
[394478427,1763617888988,-1290.0,0.00054795,120]
[394478428,1763617889026,-1299.09345103,0.00054795,120]
[394478429,1763617889060,-300.03951517,0.000548,120]
[394478430,1763617889096,-153.0,0.000548,120]
[394478431,1763617889131,-151.15006958,0.000549,120]
[394478432,1763617889168,-925.2,0.00054939,120]
[394478433,1763617889203,-603.00397456,0.0005495,120]
[394478434,1763617889236,-155.33248826,0.0005499,120]
[394478435,1763617889269,-1000.0,0.00054999,120]
[394478436,1763617889303,-941.74663688,0.00055,120]
[394478437,1763617889337,-237.42735702,0.00055,120]
[394478438,1763617889369,-214.72998388,0.00055,120]
[394478439,1763617889405,-500.0,0.00055,30]
[394478440,1763617889439,-298.42695526,0.00055,120]
[394478441,1763617889474,-164.81082515,0.00055,120]
[394478442,1763617889509,-664.70528192,0.00055,120]
[394478443,1763617889542,-390.0,0.00055,120]
[394478444,1763617889576,-188.72713698,0.00055,120]
[394478445,1763617889612,-279.47064959,0.00055,120]
[394478446,1763617889649,-285.0,0.00055,120]
[394478447,1763617889688,-1000000.0,0.00055,120]
[394478448,1763617889724,-7293.06140839,0.00055,120]
[394478449,1763617889758,-160.37595658,0.00055,120]
[394478450,1763617889799,-150.0,0.00055,120]
[394478451,1763617889838,-2733.0,0.00055,120]
[394478452,1763617889876,-274.273359,0.00055,100]
[394478453,1763617889914,-49999.999999,0.00055,120]
[394478454,1763617889952,-1464.75324384,0.00055086,120]
[394478455,1763617889989,-152.0,0.000552,120]
[394478456,1763617890027,-217.54708398,0.00055232,120]
[394478457,1763617890065,-150.0,0.00055265,120]
[394478458,1763617890105,-153.0,0.000554,120]
[394478459,1763617890141,-150.0,0.0005553,120]
[394478460,1763617890177,-152.0,0.000556,120]
[394478461,1763617890212,-270.08,0.000557,120]
[394478462,1763617890247,-300.0,0.00055753,120]
[394478463,1763617890281,-243.45988725,0.000559,120]
[394478464,1763617890314,-1000.0,0.00055999,120]
[394478465,1763617890348,-2000.0,0.00056,120]
[394478466,1763617890382,-150.0,0.00056,120]
[394478468,1763617890414,-153.0,0.00056,120]
[394478469,1763617890448,-545.22531601,0.00056,120]
[394478470,1763617890481,-591.38292023,0.00056,120]
[394478471,1763617890514,-152.0,0.000561,120]
[394478472,1763617890546,-1871.0,0.000564,120]
[394478473,1763617890577,-150.0,0.00056595,30]
[394478474,1763617890609,-969.44894554,0.00056595,30]
[394478475,1763617890640,-206.0,0.000566,120]
[394478476,1763617890679,-152.0,0.000566,120]
[394478477,1763617890711,-153.0,0.000566,120]
[394478478,1763617890746,-907.0,0.00056615,120]
[394478479,1763617890782,-450.0,0.00056712,120]
[394478480,1763617890819,-339.02213754,0.000568,120]
[394478481,1763617890855,-2000.0,0.0005687,61]
[394478482,1763617890894,-1000.0,0.00056999,120]
[394478483,1763617890929,-2733.0,0.00057,120]
[394478484,1763617890962,-150.0,0.00057,30]
[394478485,1763617890995,-152.0,0.000571,120]
[394478486,1763617891028,-153.0,0.000572,120]
[394478487,1763617891060,-150.0,0.00057249,120]
[394478488,1763617891096,-150.0,0.00057403,120]
[394478489,1763617891131,-2151.0,0.00057534,120]
[394478490,1763617891168,-152.0,0.000576,120]
[394478491,1763617891201,-600.0,0.00057671,120]
[394478492,1763617891234,-153.0,0.000578,120]
[394478493,1763617891270,-157.59061439,0.00057835,120]
[394478494,1763617891305,-150.0,0.00057914,120]
[394478495,1763617891339,-1000.0,0.00057999,120]
[394478496,1763617891373,-150.0,0.00058,120]
[394478497,1763617891413,-241.179,0.00058,120]
[394478498,1763617891448,-1305.99347752,0.00058,120]
[394478499,1763617891484,-152.0,0.000581,120]
[394478502,1763617891518,-1006.20514327,0.000582,120]
[394478504,1763617891552,-150.0,0.00058292,120]
[394478505,1763617891586,-120736.84640545,0.000584,90]
[394478506,1763617891624,-153.0,0.000584,120]
[394478507,1763617891660,-2000.0,0.0005845,61]
[394478508,1763617891695,-2000.0,0.000585,90]
[394478509,1763617891729,-150.0,0.0005858,120]
[394478510,1763617891763,-152.0,0.000586,120]
[394478511,1763617891798,-750.0,0.0005863,120]
[394478512,1763617891833,-234.81384912,0.000587,120]
[394478513,1763617891869,-1000.0,0.00058999,120]
[394478514,1763617891905,-502.93286012,0.00059,120]
[394478515,1763617891945,-200.0,0.00059,120]
[394478516,1763617891983,-2000.0,0.00059,120]
[394478517,1763617892018,-267.64629379,0.00059,30]
[394478518,1763617892052,-2733.0,0.00059,120]
[394478519,1763617892094,-152.0,0.00059,120]
[394478520,1763617892130,-153.0,0.00059,120]
[394478521,1763617892169,-160.0,0.00059173,120]
[394478522,1763617892205,-10000.0,0.0005922,30]
[394478523,1763617892240,-2000.0,0.0005935,71]
[394478524,1763617892278,-7000.0,0.0005937,30]
[394478525,1763617892321,-242.74630637,0.00059399,120]
[394478526,1763617892356,-260.86380998,0.00059399,120]
[394478527,1763617892389,-270.23008019,0.00059399,120]
[394478528,1763617892422,-1391.5545719,0.000595,30]
[394478529,1763617892462,-152.0,0.000595,120]
[394478530,1763617892500,-792.50178441,0.00059589,120]
[394478531,1763617892539,-153.0,0.000596,120]
[394478532,1763617892576,-1000.0,0.0005961,120]
[394478533,1763617892750,-150.0,0.00059789,120]
[394478534,1763617892788,-19999.99999901,0.000598,120]
[394478535,1763617892826,-6000.0,0.0005985,30]
[394478536,1763617892863,-2765.81519596,0.000599,120]
[394478537,1763617892898,-1115.04400789,0.000599,120]
[394478538,1763617892932,-3491.40827,0.000599,120]
[394478539,1763617892965,-170.13605932,0.00059954,120]
[394478540,1763617892998,-383.43999113,0.00059954,120]
[394478541,1763617893031,-2124.49796714,0.00059956,120]
[394478542,1763617893065,-7412.51449722,0.00059957,120]
[394478543,1763617893101,-176.91469767,0.00059957,120]
[394478544,1763617893136,-176.91469767,0.00059957,120]
[394478545,1763617893172,-7412.51449722,0.00059959,120]
[394478546,1763617893207,-7412.51449722,0.00059959,120]
[394478547,1763617893245,-218.16951898,0.00059961,120]
[394478548,1763617893282,-196.72102825,0.00059962,120]
[394478549,1763617893322,-2124.49796714,0.00059963,120]
[394478550,1763617893359,-259.22641522,0.00059964,120]
[394478551,1763617893395,-218.16951898,0.00059969,120]
[394478552,1763617893431,-23966.91303108,0.00059971,120]
[394478553,1763617893468,-184.86329284,0.00059972,120]
[394478554,1763617893505,-378.47925004,0.00059975,120]
[394478555,1763617893541,-23966.91303108,0.00059975,120]
[394478556,1763617893576,-196.72102825,0.00059976,120]
[394478557,1763617893613,-170.13605932,0.0005998,120]
[394478558,1763617893655,-378.47925004,0.00059981,120]
[394478559,1763617893692,-218.16951898,0.00059981,120]
[394478560,1763617893729,-925.2,0.00059986,120]
[394478561,1763617893765,-184.86329284,0.00059986,120]
[394478562,1763617893803,-383.43999113,0.00059986,120]
[394478563,1763617893840,-170.13605932,0.00059986,120]
[394478564,1763617893877,-184.86329284,0.00059988,120]
[394478565,1763617893915,-383.43999113,0.00059988,120]
[394478566,1763617893951,-196.72102825,0.00059989,120]
[394478567,1763617893986,-181021.12615495,0.0005999,120]
[394478568,1763617894021,-23966.91303108,0.00059991,120]
[394478569,1763617894059,-259.22641522,0.00059993,120]
[394478570,1763617894096,-259.22641522,0.00059994,120]
[394478571,1763617894132,-378.47925004,0.00059998,120]
[394478572,1763617894168,-2124.49796714,0.00059999,120]
[394478573,1763617894204,-176.91469767,0.00059999,120]
[394478574,1763617894243,-1000.0,0.00059999,120]
[394478575,1763617894282,-440.67232485,0.0006,120]
[394478576,1763617894319,-486.83366899,0.0006,120]
[394478577,1763617894354,-281.65598208,0.0006,120]
[394478578,1763617894392,-221.51706482,0.0006,120]
[394478579,1763617894430,-1256.43,0.0006,30]
[394478580,1763617894468,-172.70918141,0.0006,120]
[394478581,1763617894505,-380.0,0.0006,120]
[394478582,1763617894541,-150.0,0.0006,120]
[394478583,1763617894577,-187.0,0.0006,60]
[394478584,1763617894615,-1376.25,0.0006,120]
[394478585,1763617894654,-1000000.0,0.0006,120]
[394478586,1763617894690,-629.2701814,0.0006,120]
[394478587,1763617894727,-300.0,0.0006,120]
[394478588,1763617894765,-928.63453081,0.0006,120]
[394478589,1763617894804,-546.8364444,0.0006,120]
[394478590,1763617894840,-10099.77210749,0.0006,120]
[394478591,1763617894877,-548.06577745,0.0006,60]
[394478592,1763617894914,-152.0,0.0006,120]
[394478593,1763617894952,-150.0,0.0006,60]
[394478594,1763617894988,-250.0,0.0006007,60]
[394478595,1763617895026,-303.13489737,0.0006007,60]
[394478596,1763617895064,-153.0,0.000602,120]
[394478597,1763617895101,-245.63,0.00060274,120]
[394478598,1763617895287,151.0,0.00041,120]
[394478599,1763617895453,151.0,0.00049315,60]
[394478600,1763617895510,151.0,0.00049315,60]
[394478601,1763617895557,343.83337734,0.000548,120]
[394478602,1763617895612,151.0,0.00049315,60]
[394478603,1763617895657,150.32451217,0.00042029,120]
[394478604,1763617895700,151.0,0.00038,30]
[394478605,1763617895751,151.0,0.00038,31]
[394478606,1763617895795,275.110495,0.00049315,60]
[394478607,1763617895847,151.0,0.000395,30]
[394478608,1763617895900,151.0,0.000395,120]
[394478609,1763617895944,151.0,0.00041,30]
[394478610,1763617895989,151.0,0.00041,120]
[394478611,1763617896076,151.0,0.00038,30]
[394478612,1763617896124,151.0,0.00057534,120]
[394478613,1763617896174,151.0,0.00038,31]
[394478614,1763617896253,164.2875,0.000395,30]
[394478615,1763617896422,151.0,0.000395,120]
[394478616,1763617896533,248.12800005,0.00041,120]
[394478617,1763617896602,235.441196,0.00038,31]
[394478618,1763617896698,3074.524,0.0004073,59]
[394478619,1763617896743,235.441196,0.000395,120]
[394478620,1763617896800,217.296,0.0004073,59]
[394478621,1763617896873,235.441196,0.00041,120]
[394478622,1763617896921,151.0,0.00038,31]
[394478623,1763617897532,174.2813755,0.00042029,120]
[394478624,1763617899512,161.37139952,0.00042029,120]
[394478647,1763617911228,166.29467246,0.00042029,120]
[394478648,1763617914709,500.0,0.00042029,120]
[394478649,1763617914936,341.03475863,0.00042029,120]
[394478650,1763617916167,-235.441196,0.00038,31]